Cogmind - Beta 16.1 @@@ ROGUE MODE // 2026.03.14 @ 12:55:27 Player: cptwinky Result: Core destroyed Performance ------------- Evolutions (8) 4000 Regions Visited (27) 5400 Robots Destroyed (276) 1380 Value Destroyed (12215) 12215 Prototype IDs (62) 1240 Alien Tech Used (3) 600 Bonus (11761) 11761 TOTAL SCORE: 36596 Bonus ------- High Alert Combat Kills 128 Follower Combat Kills 2284 Network Hubs Disabled 400 Met Zhirov 300 MAIN.C Attacked Warlord 500 Warlord Defense Kills 4920 Built Enhanced Grunts 300 A7 Reached Mainframe 300 Met R17 at Cetus 500 Hacked Protovariant 500 Met R17 at Research 2000 Scanned by Researcher 500 Friendly Fire -871 Cogmind --------- Core Integrity 0/1450 Matter 300/300 Energy 100/100 System Corruption 42% Temperature Cool (0) Movement Core (50) Location -2/Testing Parts ------- > --- POWER (3) -------- (None) > --- PROPULSION (8) --- (None) > --- UTILITY (8) ------ (None) > --- WEAPON (5) ------- (None) > --- INVENTORY (5) ---- Improved Matter Compressor (300) Experimental Terrain Scan Processor Advanced Phase Shifter Hacking Suite Advanced Trap Extractor (0/8) Peak State ------------ > --- POWER ------------ Heavy Antimatter Reactor Neutrino-Quantum Core > --- PROPULSION ------- Heavy Shield Leg Hovering Antigrav-Centrium Exoskeleton > --- UTILITY ---------- Scrap Engine Advanced Coolant Injector High-capacity Storage Unit Advanced Targeting Computer Experimental Core Analyzer Advanced Transmission Jammer Advanced Force Field > --- WEAPON ----------- Shotgun Laser Nova Construct/G Heavy Mace > --- INVENTORY -------- Advanced Cryofiber Web Advanced Heat Sink Advanced Cooling System Advanced Energy Well Improved Matter Compressor Enhanced Optical Array Experimental Terrain Scan Processor Advanced Phase Shifter Advanced Phase Shifter Advanced Phase Shifter Improved Point Defense System Hacking Suite Hacking Suite Hacking Suite Long-range Tractor Beam Advanced Trap Extractor Transdimensional Reconstructor Heavy Pick [Rating: 145] Favorites ----------- Power Constructs Engine Ion Engine Power Core Constructs Reactor Heavy Antimatter Reactor Propulsion Light Treads Treads Light Treads Leg Heavy Shield Leg Hover Unit Constructs Utility Armored Scrap Engine Device Armored Scrap Engine Storage Large Storage Unit Processor Advanced Targeting Computer Hackware Hacking Suite Protection Centrium Medium Armor Plating Weapon Constructs Energy Gun Constructs Energy Cannon Phase Cannon Ballistic Gun Improved Assault Rifle Ballistic Cannon Light Cannon Launcher Missile Launcher Special Weapon Improved Remote Datajack Impact Weapon Heavy Mace Piercing Weapon Heavy Pick Special Melee Weapon Advanced Datajack Build | -11 -10 -10 -9 -9 -9 -8 -8 -8 -8 -6 -6 -6 -6 -6 -5 -5 -5 -5 -4 -4 -4 -4 -4 -3 -3 -2 -2 ------- Run | Yrd Mat Min Mat Min Exi Min Mat Sto Rec Fac Ext Cet Arc Hub Fac Upp Upp Zhi Pro Fac Upp Upp War Pro Res Res Tes Slots Evolved 16 | . . . 2 . . . 2 . . 4 . . . . 2 . . . . 2 . . . . 2 2 . Power 1 | . . . . . . . . . . 1 . . . . . . . . . . . . . . . . . Propulsion 6 | . . . 1 . . . . . . 1 . . . . 1 . . . . 1 . . . . 1 1 . Utility 6 | . . . 1 . . . 1 . . 2 . . . . . . . . . 1 . . . . . 1 . Weapon 3 | . . . . . . . 1 . . . . . . . 1 . . . . . . . . . 1 . . Parts Attached 128 | 6 6 4 6 . 2 1 18 31 2 4 4 3 2 . 4 . . 3 2 2 4 . 3 2 8 1 10 Power 10 | 1 . . . . . . 3 2 . . . . . . . . . 1 . . . . . 1 1 . 1 Engine 5 | 1 . . . . . . 2 2 . . . . . . . . . . . . . . . . . . . Core 1 | . . . . . . . 1 . . . . . . . . . . . . . . . . . . . . Reactor 4 | . . . . . . . . . . . . . . . . . . 1 . . . . . 1 1 . 1 Propulsion 25 | 2 . . 3 . . . 6 11 1 . . . . . . . . . . . . . . . 1 . 1 Treads 23 | 2 . . 3 . . . 6 11 1 . . . . . . . . . . . . . . . . . . Leg 2 | . . . . . . . . . . . . . . . . . . . . . . . . . 1 . 1 Wheel . | . . . . . . . . . . . . . . . . . . . . . . . . . . . . Hover . | . . . . . . . . . . . . . . . . . . . . . . . . . . . . Flight . | . . . . . . . . . . . . . . . . . . . . . . . . . . . . Utility 53 | 1 2 3 1 . 1 . 4 4 1 2 3 2 1 . 3 . . 2 2 2 3 . 2 1 5 1 7 Device 23 | . 1 1 1 . . . 2 1 1 . 1 . 1 . 2 . . . 1 1 2 . 1 . 3 1 3 Storage 7 | 1 1 . . . 1 . . . . . . . . . 1 . . 1 1 . . . . . 1 . . Processor 6 | . . . . . . . . . . . 1 . . . . . . 1 . . 1 . 1 1 . . 1 Hackware 5 | . . . . . . . 1 . . 1 . . . . . . . . . . . . . . . . 3 Protection 12 | . . 2 . . . . 1 3 . 1 1 2 . . . . . . . 1 . . . . 1 . . Artifact . | . . . . . . . . . . . . . . . . . . . . . . . . . . . . Weapon 40 | 2 4 1 2 . 1 1 5 14 . 2 1 1 1 . 1 . . . . . 1 . 1 . 1 . 1 Energy Gun 7 | 1 1 . 1 . . 1 . 2 . . . 1 . . . . . . . . . . . . . . . Energy Cannon 5 | . . . . . . . 1 3 . 1 . . . . . . . . . . . . . . . . . Ballistic Gun 14 | 1 . . . . . . 3 7 . . 1 . 1 . . . . . . . . . . . 1 . . Ballistic Cannon 4 | . 2 . 1 . . . 1 . . . . . . . . . . . . . . . . . . . . Launcher 4 | . . . . . 1 . . 2 . . . . . . . . . . . . 1 . . . . . . Special Weapon 2 | . 1 . . . . . . . . . . . . . 1 . . . . . . . . . . . . Impact Weapon 1 | . . 1 . . . . . . . . . . . . . . . . . . . . . . . . . Slashing Weapon . | . . . . . . . . . . . . . . . . . . . . . . . . . . . . Piercing Weapon 1 | . . . . . . . . . . . . . . . . . . . . . . . . . . . 1 Special Melee Weapon 2 | . . . . . . . . . . 1 . . . . . . . . . . . . 1 . . . . Unidentified Prototypes 24 | . . 1 1 . . . . 9 1 . . 2 1 . . . . 3 . . 1 . . 1 1 . 3 Parts Lost 40 | . . 1 1 . . . 2 2 . . . . . . . . . . . . 1 1 14 2 1 8 7 Power 8 | . . . . . . . 2 . . . . . . . . . . . . . . . 3 . . 2 1 Propulsion 6 | . . . . . . . . . . . . . . . . . . . . . . . 2 . . 1 3 Utility 14 | . . 1 . . . . . 2 . . . . . . . . . . . . 1 . 3 2 1 3 1 Weapon 12 | . . . 1 . . . . . . . . . . . . . . . . . . 1 6 . . 2 2 Highest Loss Streak 8 | . . 1 1 . . . 1 1 . . . . . . . . . . . . 1 1 8 2 1 4 4 To Critical Strikes . | . . . . . . . . . . . . . . . . . . . . . . . . . . . . Average Backups 15 | 4 9 9 9 10 9 9 14 14 14 13 14 14 13 14 14 14 14 14 15 18 19 19 18 14 17 19 17 Power . | . 1 1 1 1 1 1 . 1 . . . . . . . . . . . . 1 1 1 . . 1 . Propulsion . | 2 3 2 1 1 1 1 1 1 . . . . . . . . . . . . . . . . . . . Utility 9 | . 2 3 4 5 5 5 6 5 4 5 6 7 8 9 10 11 11 10 10 13 13 13 12 13 15 15 15 Weapon 3 | . 2 2 3 3 2 2 5 6 6 6 7 5 4 4 3 2 2 3 2 2 2 2 2 . . 1 . Tool/Special . | . . . . . . . . . . . . . . . . . . . . . . . . . . . . Unused Backups 49 | . 2 3 1 . . . 1 5 6 5 3 4 1 . 1 . 1 1 . . . . . . 2 2 11 Power 4 | . . . . . . . 1 1 1 . . . . . . . . . . . . . . . 1 . . Propulsion 8 | . 1 1 . . . . . 2 4 . . . . . . . . . . . . . . . . . . Utility 20 | . . . . . . . . 1 1 3 . 2 . . 1 . 1 1 . . . . . . . 2 8 Weapon 16 | . 1 2 1 . . . . 1 . 2 3 2 1 . . . . . . . . . . . 1 . 2 Tool/Special 1 | . . . . . . . . . . . . . . . . . . . . . . . . . . . 1 Average Slot Usage (%) 66 | . 99 99 99 100 88 100 99 99 88 59 60 59 60 60 52 52 52 50 52 52 52 47 45 45 50 43 47 Engine 3 | . 14 14 11 11 11 11 6 . 8 6 1 3 . . 2 3 2 . . . . . . . . . . Core 2 | . . . . . . . 2 8 . . . . . . . 1 2 5 5 5 5 5 4 . . . . Reactor 1 | . . . . . . . . . . . 4 1 6 6 1 . . . . . . . . 5 8 4 5 Treads 10 | . 28 28 33 33 33 33 27 27 21 2 1 6 6 6 5 2 4 5 5 3 . . . . . 2 . Leg 1 | . . . . . . . . . . 1 . . . . . 2 . . . . 4 5 5 5 4 1 4 Device 11 | . 1 . 10 11 11 11 9 9 12 13 13 13 13 13 11 13 14 13 15 15 16 14 11 15 11 10 13 Storage 6 | . 14 14 11 11 11 11 9 9 9 6 6 6 6 6 5 5 5 5 5 5 5 5 5 5 4 4 3 Processor 4 | . . . . . . . . . . . 2 6 6 6 5 5 5 5 5 5 6 10 10 10 9 8 7 Hackware 1 | . . . . . . . 9 9 5 6 3 . . . . . . . . . . . . . . . 1 Protection 5 | . 12 14 11 11 11 11 8 9 5 5 6 6 6 6 5 2 1 1 . 5 2 . 3 . 1 3 . Energy Gun 1 | . 9 . 1 . . 11 2 . . . . 3 5 6 . . . . . . . . . . . . 3 Energy Cannon 1 | . . . . . . . . . 2 3 . 3 . . 2 1 5 5 5 5 . 4 4 . 1 1 . Ballistic Gun 5 | . 2 . . . . . 17 25 21 4 4 . . . . . . . . . . . . . 1 . . Ballistic Cannon 3 | . 15 27 20 22 . 11 5 . . 4 6 2 6 6 2 4 . . . . 4 . . . . 2 . Special Weapon 1 | . . . . . . . . . . . . . . . 4 5 5 5 5 5 5 2 . . . . . Peak Build Rating 145 | 6 9 16 17 17 17 20 29 35 51 71 80 95 100 99 102 103 99 98 98 110 121 121 112 91 118 130 145 Average Rating 73 | 5 8 9 15 16 16 20 25 30 38 63 76 87 98 96 95 96 91 90 94 102 114 109 103 82 105 118 122 On Entrance 63 | . 6 8 11 17 17 17 20 26 34 51 71 79 95 99 96 92 99 91 98 94 110 121 107 61 82 108 78 Avg Prop Armor Cover (%) . | . . . . . . . . . . . . . . . . . . . . . . . . . . . . Naked Turns 17 | . . . . . . . . . . . . . . . . . . . . . . . . . . . 17 Heaviest Build 123 | 13 22 24 25 25 36 37 42 46 48 59 59 58 62 62 63 65 56 54 73 78 93 88 85 90 99 118 123 Greatest Support 187 | 40 40 40 60 60 60 60 60 62 62 82 82 79 79 79 79 151 151 115 115 144 144 137 137 68 92 185 187 Greatest Overweight (x) 2 | . . . . . . . . . 1 1 . . . . . . . . . . . . . 2 2 1 1 Average Overweight (x) . | . . . . . . . . . . . . . . . . . . . . . . . . 1 . . . Largest Inventory Capacity 20 | 8 10 10 10 10 15 15 15 15 15 15 15 15 15 15 15 15 15 15 20 20 20 20 20 20 20 20 20 Average Capacity 16 | 7 9 10 10 10 10 15 15 15 15 15 15 15 15 15 15 15 15 15 16 20 20 20 20 20 20 20 19 Most Carried 20 | 7 10 10 10 10 10 9 15 15 15 15 15 15 15 15 15 15 15 15 17 20 20 20 20 15 20 20 20 Average Carried 15 | 4 9 9 9 9 9 9 14 14 14 13 14 14 13 14 14 14 14 14 15 18 19 19 18 14 17 19 17 Final Capacity 20 | 8 10 10 10 10 15 15 15 15 15 15 15 15 15 15 15 15 15 15 20 20 20 20 20 20 20 20 5 Final Carried 20 | 7 10 10 10 10 9 9 15 15 12 15 13 15 13 15 15 14 15 14 17 19 18 20 16 15 20 19 5 Scrap Engine Consumption 258 | . . . . . . . . . 21 9 17 16 8 8 12 14 9 3 4 18 6 10 7 3 47 19 27 Constructs Created 9 | . . . . . . . . . 3 . . . . . . . . . . . . . 2 1 1 . 2 Constructs Modified 102 | . . . . . . . . . 4 6 7 5 4 3 6 7 5 2 1 5 5 5 1 1 15 11 9 Class Distribution -------------------- 34% | Construct 26% | Mutant 19% | Commander-Construct 10% | Commander-Tank 5% | Scavenger-Tank Dominant Class ---------------- Mutant | -10/Materials Mutant | -10/Mines Mutant | -9/Materials Mutant | -9/Mines Mutant | -9/Exiles Mutant | -8/Mines Scavenger-Tank | -8/Materials Commander-Tank | -8/Storage Commander-Tank | -8/Recycling Commander-Construct | -6/Factory Commander-Construct | -6/Extension Commander-Construct | -6/Cetus Commander-Construct | -6/Archives Commander-Construct | -6/Hub_04(d) Commander-Construct | -5/Factory Construct | -5/Upper Caves Construct | -5/Upper Caves Construct | -5/Zhirov Construct | -4/Proximity Caves Construct | -4/Factory Construct | -4/Upper Caves Construct | -4/Upper Caves Construct | -4/Warlord Mutant | -3/Proximity Caves Mutant | -3/Research Mutant | -2/Research Mutant | -2/Testing Resources | -11 -10 -10 -9 -9 -9 -8 -8 -8 -8 -6 -6 -6 -6 -6 -5 -5 -5 -5 -4 -4 -4 -4 -4 -3 -3 -2 -2 ----------- Run | Yrd Mat Min Mat Min Exi Min Mat Sto Rec Fac Ext Cet Arc Hub Fac Upp Upp Zhi Pro Fac Upp Upp War Pro Res Res Tes Matter Collected 7519 | 273 133 200 205 166 . . 893 1340 197 312 246 170 40 45 376 276 275 404 263 205 235 169 320 85 161 296 234 Remotely . | . . . . . . . . . . . . . . . . . . . . . . . . . . . . Salvage Created 13800 | 116 364 282 245 203 . . 996 1411 302 337 1339 307 . 194 490 285 633 238 377 1349 482 208 1879 156 185 623 799 Parts 627 | 14 24 9 21 22 . 2 59 98 18 4 39 10 . 6 13 13 25 6 24 70 30 14 59 1 7 22 17 Haulers Intercepted 14 | . 1 . 1 . . . 3 5 . . . . . 1 1 . . . . 1 . . . . . . 1 Recyclers Shooed 5 | 1 . . . . . . . 4 . . . . . . . . . . . . . . . . . . . Parts Field Recycled . | . . . . . . . . . . . . . . . . . . . . . . . . . . . . Retrieved Matter . | . . . . . . . . . . . . . . . . . . . . . . . . . . . . Parts Self-Destructed 93 | . . . . . . . . . . . . . . . . 30 17 1 19 . 14 12 . . . . . Prevented 5 | . . . . . . . . . . . . . . . . . 1 . . . . 4 . . . . . Parts Restored . | . . . . . . . . . . . . . . . . . . . . . . . . . . . . Kills | -11 -10 -10 -9 -9 -9 -8 -8 -8 -8 -6 -6 -6 -6 -6 -5 -5 -5 -5 -4 -4 -4 -4 -4 -3 -3 -2 -2 ------- Run | Yrd Mat Min Mat Min Exi Min Mat Sto Rec Fac Ext Cet Arc Hub Fac Upp Upp Zhi Pro Fac Upp Upp War Pro Res Res Tes Combat Hostiles Destroyed 218 | . 8 4 5 12 . . 22 24 6 6 19 4 . 1 5 5 8 . 11 16 4 2 39 . 3 5 9 Melee 2 | . . . . . . . . . . . . . . . . . . . . . . . . . 1 . 1 Guns 57 | . 3 . . . . . 18 21 6 . . . . . . . . . . . . . 2 . . . 7 Cannons 91 | . 5 4 5 11 . . 3 . . 5 8 4 . 1 3 3 4 . 4 13 3 2 8 . 1 4 . AOE 48 | . . . . . . . . 3 . . 5 . . . . 2 4 . 7 3 . . 24 . . . . Classes Destroyed 27 | 1 3 1 3 1 . . 2 1 2 . 1 . . . . . 2 . 1 2 1 . 5 1 . . . Worker 11 | . 1 . . 1 . 1 3 . . . . . . . . . . . . 2 . . . . 2 . 1 Builder 10 | . . . 1 . . . 1 2 . . 2 . . . . . . . . 3 . . . . . 1 . Tunneler 6 | 5 . . . . . . . . . . . . . . . . . . . . . . . . . 1 . Hauler 14 | . 1 . 1 . . . 3 5 . . . . . 1 1 . . . . 1 . . . . . . 1 Recycler 5 | . . 2 . . . . . 1 . . . . . . . . . . . 1 . . . . . 1 . Minesweeper 1 | . . . . . . . . . . . . . . . . . . . 1 . . . . . . . . Operator 2 | . . . 1 . . . . 1 . . . . . . . . . . . . . . . . . . . Drone 1 | . . . . . . . . . . . . . . . . . . . . 1 . . . . . . . Watcher 3 | . . . . . . . . 1 . . 1 . . . . . . . . . . . . . . . 1 Swarmer 38 | . . . . 8 . . 6 3 1 . . . . . . 1 2 . 8 . 1 . 7 . 1 . . Saboteur 3 | . . . . . . . . . . . . . . . . . . . . . . . 3 . . . . Grunt 88 | . 8 4 3 4 . . 8 10 . 4 9 . . . 3 3 3 . 3 8 . . 14 . . . 4 Brawler 4 | . . . . . . . . . . . . . . . . . 1 . . . . . 3 . . . . Duelist 4 | . . . . . . . 1 . . 1 . . . . . . . . . . . . 2 . . . . Protector 1 | . . . . . . . . . . . . . . . . . . . . . . . 1 . . . . Researcher 1 | . . . . . . . . . . . . . . . . . . . . . 1 . . . . . . Sentry 40 | . . . 2 . . . 6 11 3 1 9 . . 1 1 . . . . 1 2 . . . . 3 . Specialist 1 | . . . . . . . . . . . . . . . . . . . . . . . 1 . . . . Hunter 10 | . . . . . . . 1 . . . . . . . . . 2 . . . . 1 2 . 2 2 . Programmer 19 | . . . . . . . . . 1 . . . . . 1 2 . . . 6 1 . 3 . . . 5 Heavy 1 | . . . . . . . . . . . . . . . . . . . . 1 . . . . . . . Behemoth 2 | . . . . . . . . . . . 1 . . . . . . . . . . 1 . . . . . Cetus Guard 4 | . . . . . . . . . . . . 4 . . . . . . . . . . . . . . . Enhanced Grunt 1 | . . . . . . . . . . . . . . . 1 . . . . . . . . . . . . Investigator 1 | . . . . . . . . . . . . . . . . . . . . . . . . . . . 1 Striker 2 | . . . . . . . . . . . . . . . . . . . . . . . 2 . . . . Executioner 2 | . . . . . . . . . . . . . . . . . . . . . . . 2 . . . . Scrapper 1 | . . . . . . . . . 1 . . . . . . . . . . . . . . . . . . Samaritan 7 | . . . . . . . . . . . . . . . . . 2 . . . 2 . . 3 . . . Tinkerer 1 | . . . . . . . . . . . . . . . . . . . . . . . . 1 . . . Savage 1 | . . . . . . . . . . . . . . . . . 1 . . . . . . . . . . Best Kill Streak 15 | 2 3 2 2 6 . 1 6 5 2 3 6 3 . 1 2 2 4 . 4 7 1 1 15 . 3 2 5 Combat Bots Only 15 | . 2 2 2 5 . . 6 4 2 3 6 3 . 1 2 2 4 . 4 4 1 1 15 . 2 2 3 Max Kills in Single Turn 6 | 1 1 1 1 1 . 1 2 3 1 1 2 1 . 1 1 2 2 . 2 5 1 1 6 1 1 1 1 Gunslinging . | . . . . . . . . . . . . . . . . . . . . . . . . . . . . Exploded 6 | . . . . . . . . 2 . . 2 . . . . 2 2 . 2 3 . . 6 . . . . Melee 1 | . . . . . . . . . . . . . . . . . . . . . . . . . 1 . 1 Uniques/NPCs Destroyed . | . . . . . . . . . . . . . . . . . . . . . . . . . . . . Combat | -11 -10 -10 -9 -9 -9 -8 -8 -8 -8 -6 -6 -6 -6 -6 -5 -5 -5 -5 -4 -4 -4 -4 -4 -3 -3 -2 -2 -------- Run | Yrd Mat Min Mat Min Exi Min Mat Sto Rec Fac Ext Cet Arc Hub Fac Upp Upp Zhi Pro Fac Upp Upp War Pro Res Res Tes Hostile Shots Fired 1844 | . 32 12 24 32 . . 83 99 25 11 180 30 2 9 7 42 29 . 27 122 25 35 386 54 95 251 232 Missed 592 | . 7 5 9 9 . . 19 28 5 4 84 12 . 3 2 18 9 . 4 40 7 15 136 15 36 95 30 Deflected 21 | . . . . . . . . . . . . . . . . . . . . . . . . . . . 21 Hits 1252 | . 25 7 15 23 . . 64 71 20 7 96 18 2 6 5 24 20 . 23 82 18 20 250 39 59 156 202 Melee 7 | . . . . . . . 1 . . . . . . . . . . . . . . . 6 . . . . Projectile 1245 | . 25 7 15 23 . . 63 71 20 7 96 18 2 6 5 24 20 . 23 82 18 20 244 39 59 156 202 AOE 2 | . . . . . . . . . . . . . . 1 . . . . . . . . . . . . 1 Critical Strikes 55 | . . . 1 1 . . 3 1 2 . . 3 1 . . 1 1 . 2 4 . . 16 2 1 8 8 Part Disruptions 2 | . . . . . . . . . . . . . . . . . . . . . . . 1 . . . 1 Damage Taken 23308 | . 334 101 224 218 . . 908 1000 346 87 1024 407 97 146 291 510 344 . 422 1532 419 599 5347 783 897 4641 2631 Core 2989 | . 50 . . 31 . . 91 80 37 21 61 44 . 11 28 53 . . . 83 . 26 852 42 66 637 776 Absorbed by Shields 1240 | . . . . . . . . . . . 20 124 . . . . . . . . . . . . . . 1096 Ignored by Resistances 68 | . . . . . . . . 68 . . . . . . . . . . . . . . . . . . . Regen/Repaired (Parts) 5686 | . . . . . . . 133 . 5 . 596 129 234 17 158 300 234 8 25 536 517 281 79 281 974 755 424 Core Remaining (%) 76 | 100 . 80 . . . 92 . . 62 . . . . 83 . . . . 91 . . . . 12 94 . . Volleys Fired 775 | 16 31 9 21 19 . . 70 70 16 21 56 16 . 10 17 40 41 8 28 57 22 28 55 . 16 32 76 Largest 3 | 2 2 2 2 2 . . 3 3 3 1 2 1 . 1 1 1 1 1 1 1 1 1 2 . 1 1 1 Hottest 240 | 70 115 60 86 63 . . 145 69 90 114 149 240 . 192 192 192 157 157 157 157 157 82 121 . 28 103 148 Shots Fired 1140 | 32 61 17 41 39 . . 176 196 42 21 57 16 . 10 17 40 41 8 28 57 22 28 70 . 16 32 73 Gun 513 | 32 26 . 7 . . . 125 189 39 . 1 1 . . . . . . . . . . 15 . 5 . 73 Cannon 589 | . 34 17 34 39 . . 51 . 3 21 49 15 . 10 17 38 36 5 23 57 22 28 47 . 11 32 . Launcher 34 | . . . . . . . . 7 . . 7 . . . . 2 5 . 5 . . . 8 . . . . Special 4 | . 1 . . . . . . . . . . . . . . . . 3 . . . . . . . . . Kinetic 676 | 16 43 17 34 39 . . 148 189 39 . 1 12 . 10 10 38 17 . . . 20 . . . 16 27 . Thermal 416 | 16 18 . 7 . . . 17 . 3 21 49 4 . . 7 . 19 5 23 57 2 28 62 . . 5 73 Explosive 27 | . . . . . . . . 7 . . . . . . . 2 5 . 5 . . . 8 . . . . Electromagnetic 18 | . . . . . . . 11 . . . 7 . . . . . . . . . . . . . . . . Robot Hit Streak 39 | 7 5 5 8 8 . . 18 39 26 7 23 9 . 13 15 8 13 10 12 11 11 8 16 . 4 10 20 Robot Miss Streak 5 | 2 3 2 2 4 . . 3 3 2 3 2 2 . . 4 3 1 . 2 2 3 2 2 . 3 2 5 Penetration Max 1 | . . . . . . . . . . . . 1 . . . . 1 . . . . . . . . 1 . Secondary Targets 6 | . . . . . . . 3 2 1 . . . . . . . . . . . . . . . . . . Max Gunslinging Chain 1 | . . . . . . . 1 1 1 . . . . . . . . . . . . . . . . . . Shots Hit Robots 844 | 22 31 11 26 20 . . 121 139 30 18 80 17 1 8 10 17 31 8 10 36 17 9 54 5 15 23 85 Core Hits 490 | 9 18 9 10 11 . 1 49 62 12 16 59 12 . 2 6 6 13 2 11 22 8 4 73 2 8 10 55 Critical Kills 14 | . . . . . . . . 2 . . . . . . 2 . 1 . 1 1 1 . 3 1 1 . 1 Critical Parts Destroyed 18 | . . . . . . . . . . . . . . 2 . . . 1 2 3 1 . 3 . 2 2 2 Critical Strikes 42 | 2 1 . 1 . . . 3 2 . . . . . 2 2 . 2 1 3 4 4 . 6 1 3 2 3 Burn 3 | 2 . . . . . . 1 . . . . . . . . . . . . . . . . . . . . Meltdown 2 | . . . . . . . . . . . . . . . 2 . . . . . . . . . . . . Destroy 27 | . . . . . . . . 2 . . . . . 2 . . 2 1 3 4 4 . 6 . . 1 2 Blast 4 | . 1 . 1 . . . 2 . . . . . . . . . . . . . . . . . . . . Smash 6 | . . . . . . . . . . . . . . . . . . . . . . . . 1 3 1 1 Melee Attacks 150 | . . 1 2 . . . . 10 . 4 27 2 1 . . 2 . . . 3 . . 2 14 24 26 32 Impact 110 | . . 1 2 . . . . 10 . 3 . . . . . 2 . . . 3 . . . 14 24 26 25 Slashing . | . . . . . . . . . . . . . . . . . . . . . . . . . . . . Piercing 7 | . . . . . . . . . . . . . . . . . . . . . . . . . . . 7 Sneak Attacks 42 | . . . . . . . . 1 . 1 27 2 1 . . . . . . . . . 2 4 2 1 1 Combat Hostiles . | . . . . . . . . . . . . . . . . . . . . . . . . . . . . Follow-up Attacks . | . . . . . . . . . . . . . . . . . . . . . . . . . . . . Damage Inflicted 36660 | 228 522 241 504 451 . 14 2238 2809 582 567 2738 766 . 443 586 1115 2721 327 1449 4545 1238 558 7104 458 789 1343 2324 Guns 6657 | 222 146 . 49 . . . 1494 2149 537 . 8 . . . . . . . . . . . 252 . 129 . 1671 Cannons 19038 | . 351 194 455 434 . . 706 . . 567 2177 766 . 442 551 926 1961 327 820 3316 1130 558 1917 . 221 1219 . Explosions 8994 | . . . . . . . . 556 . . 553 . . . 35 189 760 . 629 1229 108 . 4935 . . . . Melee 1701 | . . . . . . . . 52 . . . . . . . . . . . . . . . 458 434 124 633 Ramming 270 | 6 25 47 . 17 . 14 38 52 45 . . . . 1 . . . . . . . . . . 5 . 20 Kinetic 11472 | 98 390 194 455 434 . . 1762 2149 537 . 8 638 . 442 326 926 895 . . . 966 . . . 350 902 . Thermal 14970 | 124 107 . 49 . . . 245 . . 567 2177 128 . . 260 . 1066 327 820 3934 272 558 2348 . . 317 1671 Explosive 5720 | . . . . . . . . 556 . . . . . . . 189 760 . 629 611 . . 2975 . . . . Electromagnetic 2527 | . . . . . . . 193 . . . 553 . . . . . . . . . . . 1781 . . . . Impact 1701 | . . . . . . . . 52 . . . . . . . . . . . . . . . 458 434 124 633 Slashing . | . . . . . . . . . . . . . . . . . . . . . . . . . . . . Piercing . | . . . . . . . . . . . . . . . . . . . . . . . . . . . . Highest Corruption 42 | . . . 1 1 1 1 . . . . . . . . . 1 1 1 1 8 8 . 4 4 9 18 42 Average Corruption 5 | . . . 1 1 1 1 . . . . . . . . . 1 1 1 1 3 8 . 1 4 4 8 23 Corruption Purged 5 | . . . . . . . . . . . . . . . . . . . . . . . . . 5 . . Corruption Blocked . | . . . . . . . . . . . . . . . . . . . . . . . . . . . . Effects 152 | . . . 1 3 3 2 . . . . . . . . . 5 6 1 10 7 19 . 4 14 17 3 57 Message Errors 30 | . . . . . 1 . . . . . . . . . . . 1 . 5 3 4 . 1 2 4 2 7 Matter Fused 40 | . . . . 1 1 1 . . . . . . . . . 1 3 1 3 1 4 . 2 6 3 . 13 Heat Flow Errors 23 | . . . . . . . . . . . . . . . . . 1 . 1 1 3 . . 2 6 . 9 Energy Discharges 19 | . . . . . 1 . . . . . . . . . . 3 . . . . 4 . . 2 3 . 6 Parts Rejected 1 | . . . . . . . . . . . . . . . . . . . . . . . . . . . 1 Parts Fused 3 | . . . . 1 . . . . . . . . . . . . . . . . . . . 1 . . 1 Data Loss (minor) 13 | . . . . . . 1 . . . . . . . . . . 1 . . . 2 . . . . . 9 Data Loss (major) 8 | . . . . . . . . . . . . . . . . 1 . . . 1 2 . . . 1 1 2 Misfires 3 | . . . 1 1 . . . . . . . . . . . . . . . . . . 1 . . . . Alerts 4 | . . . . . . . . . . . . . . . . . . . 1 1 . . . 1 . . 1 Misdirections 5 | . . . . . . . . . . . . . . . . . . . . . . . . . . . 5 Weapon Failures 3 | . . . . . . . . . . . . . . . . . . . . . . . . . . . 3 Overload Shots 1 | . . . . . . . . . . . . 1 . . . . . . . . . . . . . . . Overflow Damage 2167 | . . . . 13 . . 12 . . . 13 . . . 10 49 246 56 194 574 63 . 290 248 267 84 48 Projectiles 1098 | . . . . 13 . . 12 . . . 13 . . . 10 49 246 56 153 397 63 . 81 . 5 . . Explosions 427 | . . . . . . . . . . . . . . . . . . . 41 177 . . 209 . . . . Melee 642 | . . . . . . . . . . . . . . . . . . . . . . . . 248 262 84 48 Knockbacks 28 | . . 2 2 3 . . 5 . . . . . . 1 2 3 3 . . . . . . 2 . 2 3 Impact 5 | . . 1 . . . . . . . . . . . . . . . . . . . . . 2 . . 2 Kinetic 20 | . . 1 2 2 . . 5 . . . . . . 1 2 2 3 . . . . . . . . 2 . Secondary 3 | . . . . 1 . . . . . . . . . . . 1 . . . . . . . . . . 1 Self-Inflicted Damage 317 | . . . . . . . . . . . 11 . . . . . . . . 114 17 . 167 . . . 8 Shots 8 | . . . . . . . . . . . 1 . . . . . . . . 2 1 . 4 . . . . Rammed 59 | 1 6 5 . 4 . 3 6 12 9 . . . . 1 . . . . . . . . . . 1 . 11 Targets Rammed 66 | 1 6 6 . 5 . 4 8 13 9 . . . . 1 . . . . . . . . 1 . 1 . 11 Kicked 1 | . . . . . . . . . . . . . . . . . . . . . . . 1 . . . . Crushed 6 | . . 1 . 1 . 1 2 1 . . . . . . . . . . . . . . . . . . . Highest Temperature 420 | 70 255 42 2 . . . 184 . 18 200 149 270 . 276 352 312 270 114 316 210 228 28 420 125 249 107 350 Average Temperature 76 | 28 62 21 2 . . . 71 . 8 72 49 73 . 102 124 95 96 53 90 58 67 12 49 64 97 31 114 Received Heat Transfer 4206 | . 189 57 99 51 . . 333 459 184 24 326 27 9 24 9 108 81 . 88 216 36 54 1203 231 78 189 131 Siege Activations . | . . . . . . . . . . . . . . . . . . . . . . . . . . . . Martial Activations . | . . . . . . . . . . . . . . . . . . . . . . . . . . . . Shielding Activations 2 | . . . . . . . . . . . . . . . . . . . . . . . . . . . 2 Total Turns 165 | . . . . . . . . . . . . . . . . . . . . . . . . . . . 165 Longest Duration 100 | . . . . . . . . . . . . . . . . . . . . . . . . . . . 100 Robots Disrupted 1 | . . . . . . . . . . . . . . . . . . . . . . . 1 . . . . Combat Hostiles 1 | . . . . . . . . . . . . . . . . . . . . . . . 1 . . . . Robots Corrupted 12 | . . . . 1 . . 1 . . . . . . . . . . . . . . . 5 3 1 1 . Combat Hostiles 9 | . . . . 1 . . 1 . . . . . . . . . . . . . . . 5 . 1 1 . Parts Fried 25 | . . . . 2 . . 3 . . . 1 . . . 1 . . . . . . 1 7 2 6 2 . Impact Corruptions 20 | . . . . 1 . . . . . . . . . . . . . . . . . . . 10 5 3 1 Robots Melted 12 | . . . . . . . . . . 1 6 . . . 2 . . . . . 1 . 1 . . . 1 Combat Hostiles 11 | . . . . . . . . . . 1 6 . . . 2 . . . . . 1 . . . . . 1 Parts Melted 63 | 3 . . . . . . . . . 3 37 1 . . 3 . . . . . 1 . 1 . . . 14 Heat Transferred 16481 | 518 296 . 111 . . . 481 . . 2050 7700 148 . . 235 . . . . 350 50 . 383 . . 185 3974 Parts Sabotaged . | . . . . . . . . . . . . . . . . . . . . . . . . . . . . Parts Stolen . | . . . . . . . . . . . . . . . . . . . . . . . . . . . . Parts Stripped . | . . . . . . . . . . . . . . . . . . . . . . . . . . . . Power Chain Reactions 3 | . . . . . . . . . . . 1 . . . . . . . . . 1 . 1 . . . . Alert | -11 -10 -10 -9 -9 -9 -8 -8 -8 -8 -6 -6 -6 -6 -6 -5 -5 -5 -5 -4 -4 -4 -4 -4 -3 -3 -2 -2 ------- Run | Yrd Mat Min Mat Min Exi Min Mat Sto Rec Fac Ext Cet Arc Hub Fac Upp Upp Zhi Pro Fac Upp Upp War Pro Res Res Tes Maximum Alert Level 2 | . . . . 1 . . 1 2 1 1 1 1 . 2 2 . . . . 2 . . . . . . . Low Security (%) 78 | 100 100 100 100 95 . 100 79 42 99 76 77 14 100 26 26 . . . . 65 . . . . 100 100 100 Level 1 14 | . . . . 4 . . 20 36 . 23 22 85 . 3 54 . . . . 18 . . . . . . . Level 2 7 | . . . . . . . . 20 . . . . . 69 19 . . . . 16 . . . . . . . Level 3 . | . . . . . . . . . . . . . . . . . . . . . . . . . . . . Level 4 . | . . . . . . . . . . . . . . . . . . . . . . . . . . . . Level 5 . | . . . . . . . . . . . . . . . . . . . . . . . . . . . . High Security . | . . . . . . . . . . . . . . . . . . . . . . . . . . . . Max Security . | . . . . . . . . . . . . . . . . . . . . . . . . . . . . Peak Influence 686 | 5 64 50 42 207 . 5 293 431 207 370 374 298 168 686 451 . . . . 571 . . . . 46 111 146 Initial 240 | . . 1 . 8 . . . 104 147 . 126 188 88 . 240 . . . . . . . . . 46 . 62 Average 115 | 1 21 5 13 132 . . 130 265 31 100 122 239 58 419 246 . . . . 173 . . . . 8 46 42 Influence Increases 10695 | 25 295 111 187 319 . 5 681 1080 203 765 919 370 160 1050 623 439 290 5 255 823 95 50 795 105 201 485 359 Destroy 0b10 Robot/C 5420 | . 160 80 100 240 . . 440 500 120 360 500 160 80 300 160 240 200 . 220 320 80 40 760 . 60 100 200 Destroy 0b10 Robot/NC 330 | 25 10 10 15 5 . 5 35 50 10 5 20 10 . 10 20 . 5 5 5 35 5 . 5 . 10 15 15 Destroy Leader 982 | . 52 20 22 40 . . 136 172 . 82 44 . . 84 44 30 30 . 30 82 10 10 . . 20 40 34 Allied During Kill 1811 | . . . . . . . . 191 52 260 287 170 80 394 198 169 10 . . . . . . . . . . Trap Triggered on 0b10 10 | . . . . . . . . . . . . . . . . . . . . . . . . . . 10 . Successful Hack 407 | . 24 . 18 . . . 27 39 18 11 33 . . 26 19 . . . . 22 . . . . 52 104 14 Disable Machine 435 | . . . 15 . . . 15 45 . 30 . 15 . 15 90 . . . . 105 . . . . 45 15 45 Anti-Garrison Action 200 | . . . . . . . . . . . . . . 200 . . . . . . . . . . . . . Destroy Structure 500 | . 4 1 2 4 . . 13 53 3 17 5 15 . 21 92 . . . . 184 . . . . 14 66 6 Lose Combat Pursuer 600 | . 45 . 15 30 . . 15 30 . . 30 . . . . . 45 . . 75 . . 30 105 . 135 45 Influence Decreases 10675 | 25 289 117 165 194 147 5 434 948 582 507 839 488 380 558 680 776 348 45 255 260 561 139 186 653 270 374 450 Entered New Map 2353 | . . 5 . 14 147 . . 143 232 . 132 150 132 . 252 162 19 40 . . 209 19 8 617 23 . 49 Time Decay 6514 | 25 289 112 158 180 . 5 414 595 350 233 385 238 188 374 278 574 289 5 255 260 342 120 38 16 237 223 331 Lost Part 377 | . . . 7 . . . 20 20 . . . . . . . . . . . . 10 . 140 20 10 80 70 Lost Ally 748 | . . . . . . . . 40 . 180 104 100 60 184 . 40 40 . . . . . . . . . . Purge Threat 683 | . . . . . . . . 150 . 94 218 . . . 150 . . . . . . . . . . 71 . Squads Dispatched 42 | . 2 . . 1 . . 4 2 . 6 1 . . 3 3 . . . . 6 . . . . 5 4 5 Investigation 10 | . 2 . . 1 . . 1 1 . . . . . 1 . . . . . 1 . . . . 3 . . Extermination 11 | . . . . . . . . . . 1 . . . 1 1 . . . . 2 . . . . . 3 3 Reinforcement 11 | . . . . . . . . . . 2 1 . . . 1 . . . . 3 . . . . 2 1 1 Assault 3 | . . . . . . . . . . . . . . 1 1 . . . . . . . . . . . 1 Garrison 7 | . . . . . . . 3 1 . 3 . . . . . . . . . . . . . . . . . Intercept . | . . . . . . . . . . . . . . . . . . . . . . . . . . . . Searches Triggered . | . . . . . . . . . . . . . . . . . . . . . . . . . . . . Construction Impeded 3 | . . . . . . . . . . 1 1 . . . . . . . . 1 . . . . . . . Haulers Reinforced 1 | . . . . . . . . . . . . . . . . . . . . 1 . . . . . . . Active Scanning Responses . | . . . . . . . . . . . . . . . . . . . . . . . . . . . . Cargo Convoy Interrupts 1 | . . . . . . . . . . . . . . . . . . . . . . . . . . 1 . Stealth | -11 -10 -10 -9 -9 -9 -8 -8 -8 -8 -6 -6 -6 -6 -6 -5 -5 -5 -5 -4 -4 -4 -4 -4 -3 -3 -2 -2 --------- Run | Yrd Mat Min Mat Min Exi Min Mat Sto Rec Fac Ext Cet Arc Hub Fac Upp Upp Zhi Pro Fac Upp Upp War Pro Res Res Tes Distress Signals 39 | . 3 . 2 . . . 3 2 . 1 2 3 . 1 . . . . . 4 . . 4 . 9 4 1 Communications Jammed 31 | . . . . . . . . . . . . . . . . . . . . . . . . . . 25 6 Distress Signals 31 | . . . . . . . . . . . . . . . . . . . . . . . . . . 25 6 Times Spotted 415 | . 16 4 11 14 . . 31 34 9 11 30 10 2 10 8 15 12 . 11 27 4 3 68 8 16 30 31 Peak Tracking Total 22 | . 3 2 3 4 . . 5 5 4 7 6 5 1 5 3 5 4 . 4 7 1 2 22 5 5 15 8 Tactical Retreats 27 | . 3 . 1 1 . . 1 1 . . 2 . . . . . 2 . . 4 . . 2 3 . 5 2 Traps | -11 -10 -10 -9 -9 -9 -8 -8 -8 -8 -6 -6 -6 -6 -6 -5 -5 -5 -5 -4 -4 -4 -4 -4 -3 -3 -2 -2 ------- Run | Yrd Mat Min Mat Min Exi Min Mat Sto Rec Fac Ext Cet Arc Hub Fac Upp Upp Zhi Pro Fac Upp Upp War Pro Res Res Tes Traps Triggered 19 | . 1 1 1 . . . 1 1 . . 6 . . . . . . . . . . . 3 . 3 . 2 Indirectly 5 | . . . . . . . . . . . 5 . . . . . . . . . . . . . . . . Trap Hack Attempts . | . . . . . . . . . . . . . . . . . . . . . . . . . . . . Triggered . | . . . . . . . . . . . . . . . . . . . . . . . . . . . . Disarmed 4 | . . . . . . . . 4 . . . . . . . . . . . . . . . . . . . Reprogrammed 7 | . . . . . . . 7 . . . . . . . . . . . . . . . . . . . . Reused 6 | . . . . . . . . . 4 . . . . . . . . . . . . 1 . . . 1 . Traps Extracted 4 | . . . . . . . 4 . . . . . . . . . . . . . . . . . . . . Installed 9 | . . . . . . . . . 4 . . . . . . . . . . . . 2 2 . . 1 . Triggered 2 | . . . . . . . . . . . . . . . . . . . . . . 1 . . . 1 . Most Traps Carried 5 | . . . . . . . 4 4 4 . . . . . . . . . 5 5 5 5 3 1 1 1 . Machines | -11 -10 -10 -9 -9 -9 -8 -8 -8 -8 -6 -6 -6 -6 -6 -5 -5 -5 -5 -4 -4 -4 -4 -4 -3 -3 -2 -2 ---------- Run | Yrd Mat Min Mat Min Exi Min Mat Sto Rec Fac Ext Cet Arc Hub Fac Upp Upp Zhi Pro Fac Upp Upp War Pro Res Res Tes Machines Disabled 29 | . . . 1 . . . 1 3 . 2 . 1 . 1 6 . . . . 7 . . . . 3 1 3 Max in Single Turn 4 | . . . 1 . . . 1 1 . 1 . 1 . . 3 . . . . 4 . . . . 1 1 1 Garrison Access 4 | . . . . . . . . 1 . . . . . 2 1 . . . . . . . . . . . . Network Hub 2 | . . . . . . . . . . . . . . 2 . . . . . . . . . . . . . Machines Repaired . | . . . . . . . . . . . . . . . . . . . . . . . . . . . . Machines Dismantled . | . . . . . . . . . . . . . . . . . . . . . . . . . . . . Machines Sabotaged . | . . . . . . . . . . . . . . . . . . . . . . . . . . . . Overloaded Fab Kills . | . . . . . . . . . . . . . . . . . . . . . . . . . . . . Hacking | -11 -10 -10 -9 -9 -9 -8 -8 -8 -8 -6 -6 -6 -6 -6 -5 -5 -5 -5 -4 -4 -4 -4 -4 -3 -3 -2 -2 --------- Run | Yrd Mat Min Mat Min Exi Min Mat Sto Rec Fac Ext Cet Arc Hub Fac Upp Upp Zhi Pro Fac Upp Upp War Pro Res Res Tes Machines Accessed 95 | . 6 2 4 1 1 . 7 15 11 7 9 1 . 5 7 . 1 4 . 4 . . . . 2 6 2 Terminals 58 | . 5 . 4 1 . . 4 12 5 3 9 1 . 3 3 . . . . 2 . . . . . 4 2 Fabricators 4 | . . . . . . . . . . 2 . . . . 1 . . . . 1 . . . . . . . Repair Stations 7 | . 1 . . . . . 2 . . . . . . . 1 . . . . 1 . . . . 2 . . Recycling Units 10 | . . . . . . . . 2 5 2 . . . . . . . . . . . . . . . 1 . Scanalyzers 2 | . . . . . . . 1 . . . . . . . 1 . . . . . . . . . . . . Garrison Access 5 | . . . . . . . . 1 . . . . . 2 1 . . . . . . . . . . 1 . Total Hacks 253 | . 15 2 10 3 1 . 22 37 28 15 26 3 . 6 22 . 1 17 . 11 . . . . 8 17 9 Successful 132 | . 4 2 3 . 1 . 11 18 20 5 14 . . 4 14 . 1 17 . 6 . . . . 4 7 1 Failed 119 | . 11 . 7 3 . . 10 18 8 10 12 3 . 2 8 . . . . 5 . . . . 4 10 8 Catastrophic 20 | . 5 . 1 . . . . 2 . 2 2 1 . 1 2 . . . . 1 . . . . . 1 2 Database Lockouts 2 | . . . . . . . 1 1 . . . . . . . . . . . . . . . . . . . Manual 101 | . 13 . 8 3 . . 6 12 16 7 14 1 . 3 3 . . . . 5 . . . . . 5 5 Terminals 157 | . 13 . 10 3 . . 16 30 12 5 26 3 . 4 7 . . . . 6 . . . . . 13 9 Fabricators 10 | . . . . . . . . . . 6 . . . . 2 . . . . 2 . . . . . . . Repair Stations 18 | . 2 . . . . . 3 . . . . . . . 2 . . . . 3 . . . . 8 . . Recycling Units 24 | . . . . . . . . 5 14 4 . . . . . . . . . . . . . . . 1 . Scanalyzers 11 | . . . . . . . 3 . . . . . . . 8 . . . . . . . . . . . . Garrison Access 10 | . . . . . . . . 2 . . . . . 2 3 . . . . . . . . . . 3 . Terminal Hacks 75 | . 2 2 2 . 1 . 8 14 4 2 11 . . 1 3 . 1 17 . 1 . . . . . 5 1 Record 6 | . . . . . 1 . . . . . . . . . . . . 5 . . . . . . . . . Part Schematic 4 | . . . . . . . . . . . . . . . . . . 4 . . . . . . . . . Robot Analysis 12 | . 2 . 1 . . . 2 1 1 . . . . . . . . 4 . . . . . . . 1 . Prototype ID Bank 7 | . . . . . . . . 1 1 . 1 . . . . . . 4 . . . . . . . . . Open Door 11 | . . 2 . . . . . 4 . . 4 . . . . . 1 . . . . . . . . . . Branch Access Points 6 | . . . 1 . . . 1 . . 1 . . . . 1 . . . . 1 . . . . . 1 . Alert Level 1 | . . . . . . . . 1 . . . . . . . . . . . . . . . . . . . Unreport Threat 7 | . . . . . . . . 1 . 1 3 . . . 1 . . . . . . . . . . 1 . Locate Traps 5 | . . . . . . . 1 2 . . 1 . . . 1 . . . . . . . . . . . . Disarm Traps 2 | . . . . . . . . 2 . . . . . . . . . . . . . . . . . . . Reprogram Traps 2 | . . . . . . . 2 . . . . . . . . . . . . . . . . . . . . Hauler Manifests 2 | . . . . . . . 1 1 . . . . . . . . . . . . . . . . . . . Zone Layout 7 | . . . . . . . 1 1 . . 2 . . 1 . . . . . . . . . . . 2 . Protovariant Controls 1 | . . . . . . . . . . . . . . . . . . . . . . . . . . . 1 Release Object 2 | . . . . . . . . . 2 . . . . . . . . . . . . . . . . . . Fabricator Hacks 2 | . . . . . . . . . . 1 . . . . . . . . . 1 . . . . . . . Network Status 1 | . . . . . . . . . . . . . . . . . . . . 1 . . . . . . . Build 1 | . . . . . . . . . . 1 . . . . . . . . . . . . . . . . . Repair Station Hacks 12 | . 2 . . . . . 2 . . . . . . . 2 . . . . 2 . . . . 4 . . Scan Component 5 | . . . . . . . 1 . . . . . . . 1 . . . . 1 . . . . 2 . . Repair 5 | . . . . . . . 1 . . . . . . . 1 . . . . 1 . . . . 2 . . Refit 2 | . 2 . . . . . . . . . . . . . . . . . . . . . . . . . . Recycling Unit Hacks 7 | . . . . . . . . 1 4 1 . . . . . . . . . . . . . . . 1 . Retrieve Components 7 | . . . . . . . . 1 4 1 . . . . . . . . . . . . . . . 1 . Scanalyzer 7 | . . . . . . . 1 . . . . . . . 6 . . . . . . . . . . . . Insert Component 2 | . . . . . . . . . . . . . . . 2 . . . . . . . . . . . . Analyze 2 | . . . . . . . . . . . . . . . 2 . . . . . . . . . . . . Retrieve Study 3 | . . . . . . . 1 . . . . . . . 2 . . . . . . . . . . . . Garrison Access Hacks 3 | . . . . . . . . 1 . . . . . 1 1 . . . . . . . . . . . . Seal Access 3 | . . . . . . . . 1 . . . . . 1 1 . . . . . . . . . . . . Unauthorized Hacks 26 | . . . 1 . . . . 2 12 1 3 . . 2 2 . . . . 2 . . . . . 1 . Terminals 17 | . . . 1 . . . . 2 7 . 3 . . 1 1 . . . . 1 . . . . . 1 . Track 1 | . . . . . . . . . . . 1 . . . . . . . . . . . . . . . . Botnet 9 | . . . 1 . . . . 1 2 . 1 . . 1 1 . . . . 1 . . . . . 1 . Disrupt 2 | . . . . . . . . 1 . . 1 . . . . . . . . . . . . . . . . Skim 5 | . . . . . . . . . 5 . . . . . . . . . . . . . . . . . . Fabricators 3 | . . . . . . . . . . 1 . . . . 1 . . . . 1 . . . . . . . Prioritize 1 | . . . . . . . . . . 1 . . . . . . . . . . . . . . . . . Haulers 2 | . . . . . . . . . . . . . . . 1 . . . . 1 . . . . . . . Repair Stations . | . . . . . . . . . . . . . . . . . . . . . . . . . . . . Recycling Units 5 | . . . . . . . . . 5 . . . . . . . . . . . . . . . . . . Reject 5 | . . . . . . . . . 5 . . . . . . . . . . . . . . . . . . Scanalyzers . | . . . . . . . . . . . . . . . . . . . . . . . . . . . . Garrison Access 1 | . . . . . . . . . . . . . . 1 . . . . . . . . . . . . . Jam 1 | . . . . . . . . . . . . . . 1 . . . . . . . . . . . . . Data Cores Recovered 1 | . . . . . . . . 1 . . . . . . . . . . . . . . . . . . . Used . | . . . . . . . . . . . . . . . . . . . . . . . . . . . . Hacking Detections 62 | . 5 . 4 1 . . 6 10 8 6 5 1 . 3 4 . . . . 2 . . . . . 5 2 Full Trace Events 3 | . . . . 1 . . . 1 . . . . . . . . . . . 1 . . . . . . . Feedback Events . | . . . . . . . . . . . . . . . . . . . . . . . . . . . . Feedback Blocked . | . . . . . . . . . . . . . . . . . . . . . . . . . . . . Robot Schematics Acquired . | . . . . . . . . . . . . . . . . . . . . . . . . . . . . Robots Built 3 | . . . . . . . . . . 3 . . . . . . . . . . . . . . . . . Authchips . | . . . . . . . . . . . . . . . . . . . . . . . . . . . . Time 116 | . . . . . . . . . . 116 . . . . . . . . . . . . . . . . . Total Robot Build Rating 9 | . . . . . . . . . . 9 . . . . . . . . . . . . . . . . . Part Schematics Acquired 10 | . . . . . . . . . . . . . . . 1 . . 4 . . . . . . . . 5 Parts Built . | . . . . . . . . . . . . . . . . . . . . . . . . . . . . Authchips . | . . . . . . . . . . . . . . . . . . . . . . . . . . . . Time . | . . . . . . . . . . . . . . . . . . . . . . . . . . . . Total Part Build Rating . | . . . . . . . . . . . . . . . . . . . . . . . . . . . . Part Studies Acquired 3 | . . . . . . . 1 . . . . . . . 2 . . . . . . . . . . . . Parts Repaired 5 | . . . . . . . 1 . . . . . . . 1 . . . . 1 . . . . 2 . . Time 243 | . . . . . . . 38 . . . . . . . 44 . . . . 108 . . . . 53 . . Parts Recycled . | . . . . . . . . . . . . . . . . . . . . . . . . . . . . Recycled Matter . | . . . . . . . . . . . . . . . . . . . . . . . . . . . . Retrieved Matter . | . . . . . . . . . . . . . . . . . . . . . . . . . . . . Retrieved Components 22 | . . . . . . . . 8 11 3 . . . . . . . . . . . . . . . . . Parts Scanalyzed 2 | . . . . . . . . . . . . . . . 2 . . . . . . . . . . . . Part Schematics Acquired 1 | . . . . . . . . . . . . . . . 1 . . . . . . . . . . . . Parts Damaged . | . . . . . . . . . . . . . . . . . . . . . . . . . . . . Bothacking | -11 -10 -10 -9 -9 -9 -8 -8 -8 -8 -6 -6 -6 -6 -6 -5 -5 -5 -5 -4 -4 -4 -4 -4 -3 -3 -2 -2 ------------ Run | Yrd Mat Min Mat Min Exi Min Mat Sto Rec Fac Ext Cet Arc Hub Fac Upp Upp Zhi Pro Fac Upp Upp War Pro Res Res Tes Used RIF Installer . | . . . . . . . . . . . . . . . . . . . . . . . . . . . . Robots Hacked 8 | . . . . . . . . . . 1 1 2 1 . . . . 3 . . . . . . . . . Non-combat 2 | . . . . . . . . . . 1 . . 1 . . . . . . . . . . . . . . Combat 6 | . . . . . . . . . . . 1 2 . . . . . 3 . . . . . . . . . Robot Hacks Applied 8 | . . . . . . . . . . 1 1 2 1 . . . . 3 . . . . . . . . . parse_system 7 | . . . . . . . . . . 1 1 2 . . . . . 3 . . . . . . . . . check_alert 1 | . . . . . . . . . . . . . 1 . . . . . . . . . . . . . . Relay Couplers Released 1 | . . . . . . . . . . . . . . 1 . . . . . . . . . . . . . Machine Destruction 1 | . . . . . . . . . . . . . . 1 . . . . . . . . . . . . . Fabnet Peak Effective % . | . . . . . . . . . . . . . . . . . . . . . . . . . . . . Robots Rewired 28 | . . . . . . . . . 6 . 18 . . . . 3 . . . . . . 1 . . . . Allies Hacked 1 | . . . . . . . . . 1 . . . . . . . . . . . . . . . . . . Hacks Repelled . | . . . . . . . . . . . . . . . . . . . . . . . . . . . . Allies | -11 -10 -10 -9 -9 -9 -8 -8 -8 -8 -6 -6 -6 -6 -6 -5 -5 -5 -5 -4 -4 -4 -4 -4 -3 -3 -2 -2 -------- Run | Yrd Mat Min Mat Min Exi Min Mat Sto Rec Fac Ext Cet Arc Hub Fac Upp Upp Zhi Pro Fac Upp Upp War Pro Res Res Tes Total Allies 54 | . . . . 2 . . . 10 6 3 24 5 . . . 3 . . . . . . 1 . . . . Largest Group 21 | . . . . 2 2 . . 10 14 14 21 21 19 15 4 6 2 . . . . . 1 . . . . Highest-Rated Group 1031 | . . . . 47 47 . . 173 246 246 682 1031 963 728 377 363 120 . . . . . 30 . . . . Highest-Rated Ally 159 | . . . . 31 31 . . 29 30 30 159 159 159 96 96 96 91 . . . . . 30 . . . . Total Orders 63 | . . . . . . . . 5 2 2 . . . 6 . 18 5 . 2 1 6 4 6 1 5 . . STAY 20 | . . . . . . . . 3 1 . . . . 5 . 7 . . . . . . 4 . . . . FOLLOW 10 | . . . . . . . . 2 1 1 . . . 1 . 5 . . . . . . . . . . . EXPLORE 2 | . . . . . . . . . . . . . . . . . . . . . . . . . 2 . . RETURN 31 | . . . . . . . . . . 1 . . . . . 6 5 . 2 1 6 4 2 1 3 . . Ally Attacks 481 | . . . . . . . . 15 19 94 43 57 20 112 39 74 8 . . . . . . . . . . Total Damage 11960 | . . . . . . . . 168 252 1447 730 1789 642 3697 1588 1546 101 . . . . . . . . . . Kills 72 | . . . . . . . . 1 4 15 7 7 4 16 6 10 2 . . . . . . . . . . Allies Corrupted . | . . . . . . . . . . . . . . . . . . . . . . . . . . . . Allies Melted 2 | . . . . . . . . . . . . . . 1 . 1 . . . . . . . . . . . Intel | -11 -10 -10 -9 -9 -9 -8 -8 -8 -8 -6 -6 -6 -6 -6 -5 -5 -5 -5 -4 -4 -4 -4 -4 -3 -3 -2 -2 ------- Run | Yrd Mat Min Mat Min Exi Min Mat Sto Rec Fac Ext Cet Arc Hub Fac Upp Upp Zhi Pro Fac Upp Upp War Pro Res Res Tes Active Infowar (turns) 1329 | . . . . . . . . . . . . . . . . . . . . . 91 38 . . . 554 646 Jamming 1329 | . . . . . . . . . . . . . . . . . . . . . 91 38 . . . 554 646 Robot Analysis Total 12 | . 2 . 1 . . . 2 1 1 . . . . . . . . 4 . . . . . . . 1 . Derelict Logs Recovered 6 | . . 1 . . . . . . . . . . . . . 2 . . 1 . 1 1 . . . . . Drone Launches 39 | . . . . . . . . . . 1 . . . . . 6 5 . 4 . 6 4 2 1 10 . . Drone Recoveries 32 | . . . . . . . . . . 1 . . . . . 6 5 . 3 . 6 4 2 1 4 . . Exploration | -11 -10 -10 -9 -9 -9 -8 -8 -8 -8 -6 -6 -6 -6 -6 -5 -5 -5 -5 -4 -4 -4 -4 -4 -3 -3 -2 -2 ------------- Run | Yrd Mat Min Mat Min Exi Min Mat Sto Rec Fac Ext Cet Arc Hub Fac Upp Upp Zhi Pro Fac Upp Upp War Pro Res Res Tes Turns Passed 26203 | 224 885 1094 378 361 346 210 1212 1882 2279 826 1095 500 581 876 613 1743 1063 284 965 740 765 1281 2427 754 1217 596 1006 Spaces Moved 12658 | 96 452 551 172 176 213 127 530 866 1070 453 688 260 119 394 453 1029 598 171 586 461 522 733 309 277 517 488 347 Core 11 | 2 . . . . . . . . . . . . . . . . . . . . . . . . . . 9 Treads 8364 | 94 452 551 172 176 213 127 530 866 984 165 105 260 119 394 453 522 592 171 586 342 108 . . . 24 307 51 Legs 3347 | . . . . . . . . . 86 190 . . . . . 507 6 . . . 414 733 309 277 430 181 214 Wheels . | . . . . . . . . . . . . . . . . . . . . . . . . . . . . Hover 936 | . . . . . . . . . . 98 583 . . . . . . . . 119 . . . . 63 . 73 Flight . | . . . . . . . . . . . . . . . . . . . . . . . . . . . . Fastest Speed 50 | 50 160 160 160 160 160 160 160 155 126 73 73 121 121 121 121 121 130 148 148 87 96 131 131 154 104 57 50 Average Speed 140 | 157 160 160 160 160 160 160 160 158 152 136 102 121 121 121 121 151 133 148 148 120 123 131 131 167 152 82 158 Slowest Speed 205 | 160 160 160 160 160 160 160 160 160 177 201 121 121 121 121 121 180 148 148 148 148 131 131 131 205 205 168 173 Overloaded Moves . | . . . . . . . . . . . . . . . . . . . . . . . . . . . . Propulsion Burnouts . | . . . . . . . . . . . . . . . . . . . . . . . . . . . . Robots Hopped . | . . . . . . . . . . . . . . . . . . . . . . . . . . . . Potential Cave-ins 12 | . . . . . . . . . . . . . . . . . . . . . . . . 4 . 8 . Cave-ins Triggered 1 | . . . . . . . . . . . . . . . . . . . . . . . . . . 1 . Teleports 1 | . . . . . . . . . . . . . . . . . . . . . . . . . . . 1 Exploration Rate (%) 52 | 3 74 92 20 35 61 42 57 89 98 15 80 64 75 34 16 93 65 60 86 12 71 74 30 38 21 17 36 Regions Visited 27 Branch Regions 19 Pre-discovered Areas 8 | . . . . . 1 . . . 2 . . . . . . 1 . 3 . . 1 . . . . . . Known Exits Taken 10 | . . . 1 . . . 1 . . 1 . . . 1 1 . 1 . 1 1 . . . 1 . 1 . Unknown Exits Taken 17 | 1 1 1 . 1 1 1 . 1 1 . 1 1 1 . . 1 . 1 . . 1 1 1 . 1 . . Scrap Searched 16 | . . 1 . . . . . . . . . . . . . 6 3 . 1 . 1 2 . 2 . . . Spaces Dug 175 | . 1 1 . . . . 3 34 1 3 . . . 2 . 5 15 . 42 3 1 10 17 8 4 23 2 Terrain Destroyed 622 | . 1 1 2 4 . . 11 58 2 3 1 3 . 2 28 40 59 . 48 98 26 14 164 8 6 41 2 Melee 48 | . . 1 . . . . . 7 . 2 . . . . . 2 . . . 2 . . . 8 4 20 2 Projectile 171 | . 1 . 2 4 . . 11 . 2 1 . 3 . 2 8 24 21 . 13 10 22 14 10 . 2 21 . AOE 403 | . . . . . . . . 51 . . 1 . . . 20 14 38 . 35 86 4 . 154 . . . . Terrain Rammed . | . . . . . . . . . . . . . . . . . . . . . . . . . . . . Walls Destroyed . | . . . . . . . . . . . . . . . . . . . . . . . . . . . . Machines Disabled . | . . . . . . . . . . . . . . . . . . . . . . . . . . . . Actions | -11 -10 -10 -9 -9 -9 -8 -8 -8 -8 -6 -6 -6 -6 -6 -5 -5 -5 -5 -4 -4 -4 -4 -4 -3 -3 -2 -2 --------- Run | Yrd Mat Min Mat Min Exi Min Mat Sto Rec Fac Ext Cet Arc Hub Fac Upp Upp Zhi Pro Fac Upp Upp War Pro Res Res Tes Total 19822 | 136 551 741 230 215 218 131 753 1208 1693 637 1022 432 555 783 501 1170 819 197 653 584 614 1023 2259 544 889 603 661 Wait 5547 | 11 42 157 19 14 . . 102 156 511 132 213 135 428 375 15 64 169 5 23 48 54 252 1879 247 303 46 147 Move 12632 | 95 451 550 171 175 212 126 529 865 1069 452 687 259 118 393 452 1028 597 170 585 460 521 732 308 276 517 487 347 Hop . | . . . . . . . . . . . . . . . . . . . . . . . . . . . . Pick Up 117 | 7 4 4 3 1 . . 12 7 10 12 3 5 1 3 4 . 1 3 2 8 . 1 2 2 13 3 6 Fast Attach 45 | 6 5 3 1 . . . 2 10 1 . . 2 . . 1 . . 3 1 . 2 . . . 3 . 5 Attach 45 | . . 1 3 . 1 . 3 2 1 2 . 1 . . 1 4 1 2 2 3 2 . 5 3 3 1 4 Detach 38 | . 3 1 1 . . . . 6 6 . . 3 . . 1 3 2 1 4 . 2 1 . 1 1 . 2 Swap 165 | . 2 4 6 . 3 1 17 37 5 7 11 3 4 . 5 10 7 1 7 2 10 7 5 1 2 3 5 Drop 133 | . 7 5 3 1 2 . 10 32 20 7 6 6 3 1 5 . 1 4 1 3 1 . . . 7 4 4 Fire 775 | 16 31 9 21 19 . . 70 70 16 21 56 16 . 10 17 40 41 8 28 57 22 28 55 . 16 32 76 Melee 150 | . . 1 2 . . . . 10 . 4 27 2 1 . . 2 . . . 3 . . 2 14 24 26 32 Ram 12 | . . . . . . . . . . . . . . . . . . . . . . . . . . . 12 Kick 1 | . . . . . . . . . . . . . . . . . . . . . . . 1 . . . . Crush 53 | 1 6 6 . 5 . 4 8 13 9 . . . . 1 . . . . . . . . . . . . . Escape Stasis 21 | . . . . . . . . . . . . . . . . . . . . . . . . . . . 21 Rewire 79 | . . . . . . . . . 41 . 19 . . . . 19 . . . . . . . . . . . Trap 9 | . . . . . . . . . 4 . . . . . . . . . . . . 2 2 . . 1 . Miscellaneous . | . . . . . . . . . . . . . . . . . . . . . . . . . . . . Route ------- -11/Scrapyard -10/Materials (discovered 2 exits: *Mat / *Min) -10/Mines (discovered 2 exits: *Mat x2) -9/Materials (discovered 2 exits: *Min x2) -9/Mines (discovered 2 exits: *Mat / *Exi) -9/Exiles -8/Mines -8/Materials (discovered 2 exits: [*Fac] / *Sto) -8/Storage (discovered 2 exits: [*Fac] / *Rec) -8/Recycling -6/Factory (discovered 6 exits: Fac x2 / Low x2 / *Ext x2) -6/Extension (discovered 2 exits: *Fac / *Cet) -6/Cetus (discovered 2 exits: *Fac / [*Arc]) -6/Archives (discovered 2 exits: *Fac / *Hub) -6/Hub_04(d) -5/Factory (discovered 3 exits: *Fac / *Upp x2) -5/Upper Caves -5/Upper Caves -5/Zhirov -4/Proximity Caves -4/Factory (discovered 2 exits: *Upp x2) -4/Upper Caves -4/Upper Caves (discovered 2 exits: *Res / [*War]) -4/Warlord -3/Proximity Caves -3/Research -2/Research (discovered 3 exits: [*Acc] / *Tes x2) -2/Testing History --------- Turn | Location | Event 15 | -11/Scrapyard | Discovered new exit (range 16) 225 | -11/Scrapyard | Entered Materials 317 | -10/Materials | Build established: Mutant 659 | -10/Materials | Discovered new exit (range 5) 825 | -10/Materials | Derelicts attacked the area 1019 | -10/Materials | Discovered new exit (range 3) 1110 | -10/Materials | Entered Mines 1120 | -10/Mines | Learned Materials stockpile data 1139 | -10/Mines | A weapon hastily lodged in a ceiling crevice suddenly fell to the ground 1370 | -10/Mines | Met a Derelict who couldn't figure out how to use a Trap Extractor 1606 | -10/Mines | Discovered new exit (range 3) 1724 | -10/Mines | Discovered new exit (range 14) 1853 | -10/Mines | Found the Drone Emporium 1862 | -10/Mines | Found Prototype Device 1862 | -10/Mines | Identified Sensor Drone Bay 2204 | -10/Mines | Entered Materials 2204 | -9/Materials | Evolved 2 slots: Propulsion x1, Utility x1 2375 | -9/Materials | Identified exit to Mines 2582 | -9/Materials | Entered Mines 2602 | -9/Mines | Discovered new exit (range 6) 2846 | -9/Mines | Received a Rocket Launcher from a helpful Derelict 2931 | -9/Mines | Deemed a non-threat by the Exiles lab entrance 2931 | -9/Mines | Discovered new exit (range 5) 2943 | -9/Mines | Entered Exiles 2943 | -9/Exiles | Accompanied by 2 allies 2973 | -9/Exiles | Led the pair of lost Derelicts to a safe place 2984 | -9/Exiles | Met 8R-AWN 3011 | -9/Exiles | Met EX-HEX 3070 | -9/Exiles | Met EX-DEC 3097 | -9/Exiles | Learned location of Zion (-7) 3125 | -9/Exiles | Met EX-BIN 3272 | -9/Exiles | Discovered new exit (range 10) 3289 | -9/Exiles | Entered Mines 3491 | -8/Mines | Discovered new exit (range 6) 3499 | -8/Mines | Entered Materials 3499 | -8/Materials | Evolved 2 slots: Utility x1, Weapon x1 3579 | -8/Materials | Repaired Imp. Light Armor Plating 3684 | -8/Materials | Identified exit to Storage 3719 | -8/Materials | Garrison activated, responded to threat 3831 | -8/Materials | Central database locked down 4068 | -8/Materials | Discovered new exit (range 16) 4235 | -8/Materials | Build established: Scavenger-Tank 4711 | -8/Materials | Entered Storage 5100 | -8/Storage | Central database locked down 5102 | -8/Storage | Assisted by bots powering up and referring to "LRC-V3" 5517 | -8/Storage | Garrison activated, responded to threat 5561 | -8/Storage | Build established: Commander-Tank 5675 | -8/Storage | Used back door to open Recycling access 5675 | -8/Storage | Discovered new exit (range 5) 6046 | -8/Storage | Discovered new exit (range 8) 6593 | -8/Storage | Entered Recycling 6593 | -8/Recycling | Accompanied by 8 allies 7429 | -8/Recycling | Discovered new exit (range 5) 7651 | -8/Recycling | Learned location of Extension (-6) 7683 | -8/Recycling | Learned Storage stockpile data 7705 | -8/Recycling | Learned Factory stockpile data 7737 | -8/Recycling | Learned Factory emergency access door positions 7766 | -8/Recycling | Learned 2 Storage zone layouts 7827 | -8/Recycling | Angered Scraplab inhabitants 8030 | -8/Recycling | Found Prototype Device 8030 | -8/Recycling | Identified Scrap Engine 8322 | -8/Recycling | Build established: Commander-Mutant 8635 | -8/Recycling | Build established: Commander-Construct 8872 | -8/Recycling | Entered Factory 8872 | -6/Factory | Accompanied by 14 allies 8872 | -6/Factory | Evolved 4 slots: Power x1, Propulsion x1, Utility x2 8873 | -6/Factory | Identified exit to Factory 9261 | -6/Factory | Garrison activated, responded to threat 9424 | -6/Factory | Identified exit to Lower Caves 9424 | -6/Factory | Identified exit to Extension 9545 | -6/Factory | Lost 3 allies 9583 | -6/Factory | Fabricated G-47 Trooper? 9663 | -6/Factory | Lost 6 allies 9698 | -6/Factory | Entered Extension 9698 | -6/Extension | Accompanied by 3 allies 10001 | -6/Extension | Build established: Construct 10004 | -6/Extension | Rescued a captive Derelict 10006 | -6/Extension | Rescued a captive Derelict 10312 | -6/Extension | Spotted B-75 Beast 10317 | -6/Extension | Build established: Commander-Construct 10321 | -6/Extension | Destroyed B-75 Beast 10327 | -6/Extension | Spotted B-75 Beast 10334 | -6/Extension | Allies destroyed B-75 Beast 10403 | -6/Extension | Rescued a captive Derelict 10652 | -6/Extension | Rescued A7 10672 | -6/Extension | Rescued a captive Derelict 10673 | -6/Extension | Rescued a captive Derelict 10711 | -6/Extension | Discovered exit to Factory (range 10) 10712 | -6/Extension | Discovered new exit (range 6) 10793 | -6/Extension | Entered Cetus 10793 | -6/Cetus | Accompanied by 20 allies (A7) 10798 | -6/Cetus | Acquired a Cetus Manufacturing Module code from A7 10809 | -6/Cetus | Spotted Cetus Guard 10809 | -6/Cetus | Spotted Cetus Guard 10816 | -6/Cetus | Spotted Cetus Guard 10820 | -6/Cetus | Spotted Cetus Guard 10820 | -6/Cetus | Destroyed Cetus Guard 10830 | -6/Cetus | Destroyed Cetus Guard 10844 | -6/Cetus | Allies destroyed Cetus Guard 10846 | -6/Cetus | Destroyed Cetus Guard 10876 | -6/Cetus | Lost 4 allies 10946 | -6/Cetus | Started Cetus Manufacturing Module 10971 | -6/Cetus | Manufactured an Enhanced Grunt 10996 | -6/Cetus | Manufactured an Enhanced Grunt 11021 | -6/Cetus | Manufactured an Enhanced Grunt 11034 | -6/Cetus | Escorted A7 to Cetus Mainframe 11046 | -6/Cetus | Manufactured an Enhanced Grunt 11065 | -6/Cetus | Discovered new exit (range 15) 11071 | -6/Cetus | Manufactured an Enhanced Grunt 11093 | -6/Cetus | Spotted Cetus Guard 11093 | -6/Cetus | Spotted Cetus Guard 11097 | -6/Cetus | Destroyed Cetus Guard 11097 | -6/Cetus | Spotted Cetus Guard 11098 | -6/Cetus | Spotted Cetus Guard 11132 | -6/Cetus | Discovered exit to Factory (range 15) 11140 | -6/Cetus | Met Revision 17 11293 | -6/Cetus | Entered Archives 11293 | -6/Archives | Accompanied by 19 allies (A7) 11298 | -6/Archives | Received a hacking code to weaken MAIN.C 11366 | -6/Archives | Lost 3 allies 11368 | -6/Archives | Discovered new exit (range 15) 11416 | -6/Archives | Discovered exit to Factory (range 16) 11874 | -6/Archives | Entered Hub_04(d) 11874 | -6/Hub_04(d) | Accompanied by 15 allies 12204 | -6/Hub_04(d) | Discovered exit to Factory (range 10) 12224 | -6/Hub_04(d) | First assault squad dispatched 12366 | -6/Hub_04(d) | Lost 6 allies 12566 | -6/Hub_04(d) | Network Hub disabled 12597 | -6/Hub_04(d) | Lost 3 allies 12712 | -6/Hub_04(d) | Network Hub disabled 12750 | -6/Hub_04(d) | Entered Factory 12750 | -5/Factory | Accompanied by 4 allies 12750 | -5/Factory | Evolved 2 slots: Propulsion x1, Weapon x1 12832 | -5/Factory | Identified exit to Upper Caves 12832 | -5/Factory | Watched by a mysterious "MATRIX" hacker. 12913 | -5/Factory | Repaired Imp. Cooling System? 13006 | -5/Factory | Discovered new exit (range 16) 13350 | -5/Factory | First assault squad dispatched 13363 | -5/Factory | Entered Upper Caves 13363 | -5/Upper Caves | Accompanied by 3 allies 13429 | -5/Upper Caves | Learned location of Armory (-3) 13523 | -5/Upper Caves | Build established: Construct 13786 | -5/Upper Caves | Attacked by a delusional Derelict stockpiling Unaware 14128 | -5/Upper Caves | Build established: Commander-Construct 14431 | -5/Upper Caves | Discovered new exit (range 4) 14544 | -5/Upper Caves | Attracted the attention of an 0b10 checkpoint 14577 | -5/Upper Caves | Learned Factory stockpile data 14591 | -5/Upper Caves | Build established: Construct 14631 | -5/Upper Caves | Attacked by a delusional Derelict stockpiling parts 15106 | -5/Upper Caves | Entered another Upper Caves area 15106 | -5/Upper Caves | Accompanied by 2 allies 15506 | -5/Upper Caves | Discovered new exit (range 7) 15666 | -5/Upper Caves | Encountered a Warlord checkpoint 15883 | -5/Upper Caves | Lost 3 allies 16167 | -5/Upper Caves | Identified exit to Zhirov 16169 | -5/Upper Caves | Entered Zhirov 16169 | -5/Zhirov | Discovered new exit (range 3) 16196 | -5/Zhirov | Met Zhirov 16233 | -5/Zhirov | Learned location of Quarantine (-3) 16233 | -5/Zhirov | Learned location of Testing (-2) 16233 | -5/Zhirov | Learned location of Command (-1) 16242 | -5/Zhirov | Zhirov requested help retrieving the SGEMP Prototype 16267 | -5/Zhirov | Found Alien Artifact 16267 | -5/Zhirov | Identified Integrated Reactor 16267 | -5/Zhirov | Installed Integrated Reactor, increased core energy generation (+10) 16368 | -5/Zhirov | Found Alien Artifact 16453 | -5/Zhirov | Entered Proximity Caves 16924 | -4/Proximity Caves | Learned Research stockpile data 17240 | -4/Proximity Caves | Discovered new exit (range 9) 17418 | -4/Proximity Caves | Identified exit to Factory 17418 | -4/Proximity Caves | Entered Factory 17418 | -4/Factory | Accompanied by 1 ally 17418 | -4/Factory | Evolved 2 slots: Propulsion x1, Utility x1 17611 | -4/Factory | Repaired Centrium Medium Armor Plating 17682 | -4/Factory | Identified exit to Upper Caves 18158 | -4/Factory | Entered Upper Caves 18561 | -4/Upper Caves | Attracted the attention of an 0b10 checkpoint 18703 | -4/Upper Caves | Found Alien Artifact 18703 | -4/Upper Caves | Identified Core Expander 18703 | -4/Upper Caves | Installed Core Expander, added new Power slot 18817 | -4/Upper Caves | Attracted the attention of an 0b10 outpost 18904 | -4/Upper Caves | Discovered new exit (range 6) 18923 | -4/Upper Caves | Entered another Upper Caves area 18961 | -4/Upper Caves | Discovered new exit (range 19) 19155 | -4/Upper Caves | Identified exit to Research 19384 | -4/Upper Caves | Learned Research security intel 19606 | -4/Upper Caves | Spotted B-86 Titan 19633 | -4/Upper Caves | Destroyed B-86 Titan 20176 | -4/Upper Caves | Discovered new exit (range 7) 20204 | -4/Upper Caves | Entered Warlord 20248 | -4/Warlord | System corruption cleaned by Quarantine Array 20336 | -4/Warlord | Discovered new exit (range 12) 21504 | -4/Warlord | Warlord's base attacked by MAIN.C 21854 | -4/Warlord | Warlord forces counterattacked 22179 | -4/Warlord | Warlord base infiltrated, sounded retreat 22253 | -4/Warlord | Spotted Striker 22260 | -4/Warlord | Spotted Executioner 22268 | -4/Warlord | Destroyed Executioner 22293 | -4/Warlord | Destroyed 12 combat bots 22303 | -4/Warlord | Attacked by Warlord forces 22326 | -4/Warlord | Destroyed Striker 22517 | -4/Warlord | Spotted Executioner 22539 | -4/Warlord | Destroyed 8 combat bots 22540 | -4/Warlord | Destroyed Executioner 22545 | -4/Warlord | Spotted B-90 Cyclops 22553 | -4/Warlord | Found Prototype Processor 22592 | -4/Warlord | Lost 3 parts (1p2w) 22595 | -4/Warlord | Spotted Striker 22602 | -4/Warlord | Core integrity fell below 50% 22612 | -4/Warlord | Destroyed Striker 22620 | -4/Warlord | Spotted Executioner 22620 | -4/Warlord | Spotted Executioner 22631 | -4/Warlord | Entered Proximity Caves 22632 | -3/Proximity Caves | Core integrity fell below 20% 22633 | -3/Proximity Caves | Identified Exp. Core Analyzer 22634 | -3/Proximity Caves | Destroyed 15 combat bots 22659 | -3/Proximity Caves | Lost 8 parts (2p2n2u2w) 22770 | -3/Proximity Caves | Build established: Mutant 23230 | -3/Proximity Caves | Received a Behemoth hack from an annoying Tinkerer 23315 | -3/Proximity Caves | Discovered exit to Research (range 12) 23385 | -3/Proximity Caves | Entered Research 23385 | -3/Research | Evolved 2 slots: Propulsion x1, Weapon x1 23585 | -3/Research | Revision forces began assault on 0b10 23638 | -3/Research | Met up with Revision 17++ 23664 | -3/Research | Spotted B-86 Titan 23986 | -3/Research | Repaired Lyr. Medium Armor Plating 24085 | -3/Research | Research terminal network offline 24381 | -3/Research | Repaired Imp. Coolant Injector 24416 | -3/Research | Discovered new exit (range 16) 24602 | -3/Research | Entered another Research area 24602 | -2/Research | Evolved 2 slots: Propulsion x1, Utility x1 24616 | -2/Research | Lost 4 allies 24764 | -2/Research | Identified exit to Testing 25020 | -2/Research | Discovered new exit (range 9) 25049 | -2/Research | Cargo convoy interrupted 25049 | -2/Research | Spotted Executioner 25089 | -2/Research | Spotted B-90 Cyclops 25122 | -2/Research | System corruption reached 10% 25141 | -2/Research | Crushed by falling debris 25151 | -2/Research | Lost 4 parts (1p1u2w) 25198 | -2/Research | Entered Testing 25218 | -2/Testing | Lost 3 parts (1p1n1u) 25313 | -2/Testing | Found Prototype Hackware 25313 | -2/Testing | Identified Ghost Barrier 25386 | -2/Testing | Found Prototype Processor 25386 | -2/Testing | Identified Exp. Armor Integrity Analyzer 25575 | -2/Testing | Found Exp. Terrain Scan Processor 25687 | -2/Testing | Protovariant out of control (PY-PK1JRQB6F4) 25687 | -2/Testing | Unleashed a protovariant (PY-PK1JRQB6F4) 25760 | -2/Testing | Scanned by Researcher 25764 | -2/Testing | Spotted Investigator 25832 | -2/Testing | Destroyed Investigator 25881 | -2/Testing | Found Prototype Launcher 25905 | -2/Testing | Core integrity fell below 50% 25932 | -2/Testing | System corruption reached 30% 26004 | -2/Testing | Identified Transdimensional Reconstructor 26004 | -2/Testing | Warped through subspace 26034 | -2/Testing | Lost 4 parts (1p2n1w) 26187 | -2/Testing | Released all parts (10) 26197 | -2/Testing | Core integrity fell below 20% 26204 | -2/Testing | Core destroyed Last Messages --------------- 26187_ Released Hacking Suite. 26187_ Released Adv. Cooling System. 26187_ Released Adv. Targeting Computer. 26187_ Released Exp. Core Analyzer. 26187_ Released Hcp. Storage Unit. 26187_ Released Hacking Suite. 26187_ Released Neutrino-Quantum Core. 26187_ Scrap Engine damaged due to network destabilization (-9). 26187_ Released Scrap Engine. 26187_ Released Hovering Antigrav-Centrium Exoskeleton. 26187_ Slammed into P-80 Master. 26189_ System corrupted: Component data lost. 26189_ Slammed into P-80 Master. 26194_ P-80 Master resets P-80 Master, system corruption cleaned. 26197_ Slammed into P-80 Master. 26199_ Destabilizing: Core damaged (-14). 26200_ Slammed into P-80 Master. 26204_ Destabilizing: Core damaged (-43). Map ----- +----------------------------------------------------+ | ?????????????????????????????????????????????????? | | ?????????????????????????????????????????????????? | | ?????????????????????????????????????????????????? | | ?????????????????????????????????????????????????? | | ?????????????????????????????????????????????????? | | ?????????????????????????????????????????????????? | | ?????????????????????????????????????????????????? | | ?????????????????????????????????????????????????? | | ?????????????????????????????????????????????????? | | ?????????????????????????????????????????????????? | | ?????????????????????????????????????????????????? | | ?????????????????????????????????????????????????? | | ?????????????????????????????????????????????????? | | ?????????????????????????????????????????????????? | | ?????????????????????????????????????????????????? | | ?????????????????????????????????????????????????? | | ?????????????????????????????????????????????????? | | ?????????????????????????????????????????????????? | | ????????????????????##########???????????????????? | | ????????????????????# #???????????????????? | | ????????????????????# #???????????????????? | | ????????????????????# %!** #???????????????????? | | ????????????????????# ""]*]%#???????????????????? | | ????????????????????# """!!!!#???????????????????? | | ???????? ???????????# "/pp!!!#???????????????????? | | "????? ???????????# """@p!%#???????????????????? | | ??? ????????????# ""!!!% #???????????????????? | | ?? ? ?????????????# %!% !#???????????????????? | | ####+#####################+#####?????????????????? | | % !%=%% |%* %= + ??????????? | | *=$ % !!= = ! + ??????????? | | % % ! *%! + ??????????? | | ! [ ! = = ^ + ???????????? | | ######### ################### ???????????? | | #??#"" #????????????????????###????????????? | | #??#"T #???????????????????????????????????? | | #??### #?????###???????????????????????????? | | #????# ##############??????????????????????? | | #????# # #??????????????????????? | | #????# # " #??????????????????????? | | #????# # """" #??????????????????????? | | #?#### # """ #??????????????????????? | | ####?# + """" #??????????????????????? | | ?????# # """"" #??????????????????????? | | ?????# + """" #??????????????????????? | | ?????# # """""? #??????????????????????? | | ?????######### """ " ??#??????????????????????? | | ?????????????# " " ?????????????????????????? | | ?????????????# ????????????????????????? | | ?????????????# ????????????????????????? | +----------------------------------------------------+ Best States ------------- Heat Dissipation 96 Coolant Potential 100 Energy Generation 61 Energy Capacity 1033 Matter Stores 300 Matter Capacity 300 Sight Range 16 Terrain Scan Density 10 Jamming Range 16 Base Temperature (-) 200 Corruption Containment 8 Armor Coverage 225 Resistance: TH 10 Phase Shifting 15 Evasion (%) 60 Targeting Accuracy 8 Core Analysis 8 Recoil Reduction 4 Offensive Hacking 20 Defensive Hacking 20 Trap Extractor Capacity 8 Item Schematics ----------------- Hcp. Storage Unit | -5/Factory | Scanalyzed Assault Drone Bay | -5/Zhirov | Free Exp. Heat Sink | -5/Zhirov | Free Exp. Optical Array | -5/Zhirov | Free Imp. Arc Thrower | -5/Zhirov | Free Com. Linear Accelerator | -2/Testing | Archive Adv. Myomer Leg | -2/Testing | Archive Com. Tesla Bomb Launcher | -2/Testing | Archive Cld. Impulse Thruster | -2/Testing | Archive Exp. Power Amplifier | -2/Testing | Archive Robot Schematics ------------------ None Fabricated ------------ G-47 Trooper | x3 | -6/Factory | Preloaded Repaired ---------- Imp. Light Armor Plating | 26% | -8/Materials Imp. Cooling System | 62% | -5/Factory Centrium Medium Armor Plating | 42% | -4/Factory Lyr. Medium Armor Plating | 71% | -3/Research Imp. Coolant Injector | 46% | -3/Research Studied --------- Missile Launcher | -8/Materials | Hacked Hvy. Mace | -5/Factory | Hacked Imp. Remote Datajack | -5/Factory | Hacked Alien Tech Used ----------------- Integrated Reactor Core Expander Transdimensional Reconstructor Achievements -------------- None Challenges ------------ None Game ------ Seed ShrapnelClaymoresLattice Manual? 0 Play Time 02:45:31 Cumulative 2193.5 hours Start 2026.03.13 @ 03:05:02 End 2026.03.14 @ 12:55:27 Sessions 5 Manual Loads 0 Difficulty Rogue Special Mode None Game No. 1387 Rogue 1383 Adventurer 4 Explorer 0 Win Type - Total 310 Types 231/14/26/11/3/1/5/10/5/4 Lore% 99 Gallery% 96 Achievement% 92 Wizard Run 0 Options --------- Layout 2 ASCII 0 Keyboard 1 Movement Vi Keybinds 0 Fullscreen 0 Font 24/Terminus Map View 59x48 Zoom Use 0% Tactical HUD 1 Map Filters NONE Filters NONE Steam 1 RUN: 4ec9dd19-8c33-4fff-949d-6129e9990b92